[Event "*** Titled Tuesday Blitz"]
[Site "Chess.com"]
[Date "2020.01.07"]
[Round "2"]
[White "Glufs"]
[Black "13MiRacLe"]
[Result "0-1"]
[WhiteElo "2360"]
[BlackElo "2701"]
[TimeControl "180+2"]
[EndTime "13:28:31 PST"]
[Termination "13MiRacLe won by resignation"]

1. Nf3 {[%clk 0:03:01.9]} 1... Nf6 {[%clk 0:02:59.9]} 2. c4 {[%clk 0:03:00.4]}
2... c5 {[%clk 0:02:59.1]} 3. Nc3 {[%clk 0:02:54.8]} 3... d5 {[%clk 0:02:57.4]}
4. cxd5 {[%clk 0:02:52.8]} 4... Nxd5 {[%clk 0:02:59.3]} 5. e3 {[%clk 0:02:53.6]}
5... Nc6 {[%clk 0:02:59.3]} 6. Bb5 {[%clk 0:02:46.5]} 6... e6 {[%clk 0:02:53.3]}
7. O-O {[%clk 0:02:38.2]} 7... Be7 {[%clk 0:02:53.8]} 8. d4 {[%clk 0:02:27.9]}
8... cxd4 {[%clk 0:02:53.2]} 9. Nxd4 {[%clk 0:02:26.3]} 9... Bd7 {[%clk
0:02:51.1]} 10. Nxd5 {[%clk 0:02:25.5]} 10... exd5 {[%clk 0:02:51.6]} 11. Ne2
{[%clk 0:02:04.6]} 11... Nb4 {[%clk 0:02:33.9]} 12. Bxd7+ {[%clk 0:01:57.8]}
12... Qxd7 {[%clk 0:02:34.6]} 13. Bd2 {[%clk 0:01:53.6]} 13... O-O {[%clk
0:02:35]} 14. Nf4 {[%clk 0:01:09.6]} 14... Nc6 {[%clk 0:02:28.8]} 15. Bc3 {[%clk
0:01:08.4]} 15... Rad8 {[%clk 0:02:30.4]} 16. Re1 {[%clk 0:00:47.5]} 16... Rfe8
{[%clk 0:02:27.6]} 17. h3 {[%clk 0:00:31.9]} 17... Bg5 {[%clk 0:02:22.2]} 18.
Ne2 {[%clk 0:00:30.5]} 18... Re6 {[%clk 0:02:12.9]} 19. Nd4 {[%clk 0:00:31.3]}
19... Rg6 {[%clk 0:02:13.8]} 20. Nf3 {[%clk 0:00:31]} 20... Be7 {[%clk
0:02:08.8]} 21. Kf1 {[%clk 0:00:31.8]} 21... h6 {[%clk 0:02:00.2]} 22. Qd3
{[%clk 0:00:32.2]} 22... Bf6 {[%clk 0:01:46.2]} 23. Rad1 {[%clk 0:00:28.9]}
23... Bxc3 {[%clk 0:01:46.4]} 24. Qxc3 {[%clk 0:00:29.5]} 24... Qc7 {[%clk
0:01:39.5]} 25. Kg1 {[%clk 0:00:26.5]} 25... Qc8 {[%clk 0:01:31.7]} 26. Kf1
{[%clk 0:00:22.9]} 26... Qc7 {[%clk 0:01:19.3]} 27. Kg1 {[%clk 0:00:23.8]} 27...
Qb6 {[%clk 0:01:20.8]} 28. Ne5 {[%clk 0:00:22.5]} 28... Re6 {[%clk 0:01:10.9]}
29. Nf3 {[%clk 0:00:21.3]} 29... Ne7 {[%clk 0:01:04.7]} 30. Nd4 {[%clk
0:00:21.2]} 30... Rg6 {[%clk 0:01:06.2]} 31. Qb3 {[%clk 0:00:21.9]} 31... Qc7
{[%clk 0:01:00.5]} 32. Rc1 {[%clk 0:00:21.9]} 32... Qd7 {[%clk 0:01:01.6]} 33.
Kf1 {[%clk 0:00:19.4]} 33... b6 {[%clk 0:01:01.1]} 34. Rc2 {[%clk 0:00:19.5]}
34... Qd6 {[%clk 0:01:01.4]} 35. Kg1 {[%clk 0:00:19.7]} 35... Rg5 {[%clk
0:00:59.9]} 36. Rec1 {[%clk 0:00:18.3]} 36... Ng6 {[%clk 0:01:01.4]} 37. Nf3
{[%clk 0:00:18.5]} 37... Rf5 {[%clk 0:01:00.8]} 38. Rc6 {[%clk 0:00:19.1]} 38...
Qe7 {[%clk 0:00:52.3]} 39. Rc7 {[%clk 0:00:19.9]} 39... Rd7 {[%clk 0:00:52.3]}
40. Rxd7 {[%clk 0:00:20]} 40... Qxd7 {[%clk 0:00:54.2]} 41. Qc2 {[%clk
0:00:19.8]} 41... Rf6 {[%clk 0:00:28]} 42. Qc8+ {[%clk 0:00:20.2]} 42... Qxc8
{[%clk 0:00:29.5]} 43. Rxc8+ {[%clk 0:00:21.2]} 43... Kh7 {[%clk 0:00:31.4]} 44.
Rc7 {[%clk 0:00:19.3]} 44... a6 {[%clk 0:00:32.6]} 45. Kf1 {[%clk 0:00:20.1]}
45... Nf8 {[%clk 0:00:27.8]} 46. Ke2 {[%clk 0:00:20]} 46... Ne6 {[%clk
0:00:27.8]} 47. Rd7 {[%clk 0:00:17.2]} 47... Nc5 {[%clk 0:00:21.7]} 48. Rxd5
{[%clk 0:00:18.2]} 48... Ne4 {[%clk 0:00:23.4]} 49. Rd4 {[%clk 0:00:18.4]} 49...
Re6 {[%clk 0:00:21.9]} 50. Nd2 {[%clk 0:00:17.4]} 50... Nc5 {[%clk 0:00:22.5]}
51. Nf3 {[%clk 0:00:14]} 51... f6 {[%clk 0:00:22]} 52. Kd2 {[%clk 0:00:13.4]}
52... Ne4+ {[%clk 0:00:22.5]} 53. Ke2 {[%clk 0:00:14.5]} 53... Nc5 {[%clk
0:00:24]} 54. Kd2 {[%clk 0:00:15.1]} 54... Rc6 {[%clk 0:00:23.2]} 55. Ne1 {[%clk
0:00:14.6]} 55... Ne6 {[%clk 0:00:22]} 56. Rd3 {[%clk 0:00:14.8]} 56... Nc5
{[%clk 0:00:22.6]} 57. Rd4 {[%clk 0:00:15.8]} 57... Ne6 {[%clk 0:00:23.7]} 58.
Rd3 {[%clk 0:00:17]} 58... Ng5 {[%clk 0:00:21.1]} 59. Nc2 {[%clk 0:00:16.4]}
59... Ne4+ {[%clk 0:00:21.7]} 60. Kc1 {[%clk 0:00:11.9]} 60... Nxf2 {[%clk
0:00:22.9]} 61. Rd7 {[%clk 0:00:12.2]} 61... Ne4 {[%clk 0:00:22.1]} 62. a4
{[%clk 0:00:12]} 62... Nc5 {[%clk 0:00:22.6]} 63. Ra7 {[%clk 0:00:07.2]} 63...
a5 {[%clk 0:00:22.3]} 64. Kd1 {[%clk 0:00:07.1]} 64... Nxa4 {[%clk 0:00:22.5]}
65. Nd4 {[%clk 0:00:07.9]} 65... Rd6 {[%clk 0:00:21.3]} 66. Kc2 {[%clk
0:00:07.7]} 66... Nc5 {[%clk 0:00:22.3]} 67. g4 {[%clk 0:00:05.6]} 67... Rd7
{[%clk 0:00:12.1]} 68. Ra8 {[%clk 0:00:05.7]} 68... Ne4 {[%clk 0:00:09.6]} 69.
Rb8 {[%clk 0:00:06.3]} 69... Nf2 {[%clk 0:00:10.5]} 70. Rb7 {[%clk 0:00:06.3]}
70... Rxb7 {[%clk 0:00:09.9]} 0-1

[Event "*** Titled Tuesday Blitz"]
[Site "Chess.com"]
[Date "2020.01.07"]
[Round "2"]
[White "Sanan_Sjugirov"]
[Black "SoltaniciR"]
[Result "0-1"]
[WhiteElo "2932"]
[BlackElo "2631"]
[TimeControl "180+2"]
[EndTime "13:29:10 PST"]
[Termination "SoltaniciR won by resignation"]

1. d4 {[%clk 0:03:01.9]} 1... Nf6 {[%clk 0:02:59.9]} 2. c4 {[%clk 0:03:03.3]}
2... e6 {[%clk 0:03:01]} 3. Nf3 {[%clk 0:03:03.8]} 3... b6 {[%clk 0:03:00.8]} 4.
g3 {[%clk 0:03:03.7]} 4... Ba6 {[%clk 0:03:01.5]} 5. Qc2 {[%clk 0:03:02.6]} 5...
c5 {[%clk 0:02:54.1]} 6. Bg2 {[%clk 0:02:56.7]} 6... Nc6 {[%clk 0:02:52.9]} 7.
Qa4 {[%clk 0:02:52.7]} 7... Bb7 {[%clk 0:02:48.9]} 8. d5 {[%clk 0:02:51.9]} 8...
exd5 {[%clk 0:02:47.7]} 9. cxd5 {[%clk 0:02:53.8]} 9... Nxd5 {[%clk 0:02:47.1]}
10. O-O {[%clk 0:02:54.5]} 10... Be7 {[%clk 0:02:46.5]} 11. Rd1 {[%clk
0:02:54.4]} 11... Nf6 {[%clk 0:02:45.3]} 12. Nc3 {[%clk 0:02:52.9]} 12... a6
{[%clk 0:02:44.1]} 13. Bg5 {[%clk 0:02:43.8]} 13... b5 {[%clk 0:02:43.8]} 14.
Qf4 {[%clk 0:02:44]} 14... Qb8 {[%clk 0:02:37]} 15. Qd2 {[%clk 0:02:37.3]} 15...
O-O {[%clk 0:02:34.3]} 16. e4 {[%clk 0:02:25.6]} 16... b4 {[%clk 0:02:34.1]} 17.
Bxf6 {[%clk 0:02:26.4]} 17... Bxf6 {[%clk 0:02:29.9]} 18. Nd5 {[%clk 0:02:27.6]}
18... Bd4 {[%clk 0:02:25.7]} 19. Rac1 {[%clk 0:02:23.8]} 19... d6 {[%clk
0:02:08.8]} 20. Nb6 {[%clk 0:02:15.9]} 20... Re8 {[%clk 0:02:09.8]} 21. Nxa8
{[%clk 0:02:14.9]} 21... Qxa8 {[%clk 0:02:11]} 22. Re1 {[%clk 0:02:10.2]} 22...
a5 {[%clk 0:02:05.8]} 23. a4 {[%clk 0:01:57.3]} 23... Qc8 {[%clk 0:01:48.6]} 24.
Qc2 {[%clk 0:01:52.7]} 24... h6 {[%clk 0:01:41.8]} 25. Nd2 {[%clk 0:01:49.6]}
25... Ne5 {[%clk 0:01:35.4]} 26. Nb3 {[%clk 0:01:27.8]} 26... Nc6 {[%clk
0:01:35.5]} 27. Bf1 {[%clk 0:01:03.1]} 27... Qe6 {[%clk 0:01:12.3]} 28. Bc4
{[%clk 0:00:55.8]} 28... Qf6 {[%clk 0:01:12.7]} 29. Bd5 {[%clk 0:00:55.6]} 29...
Bxb2 {[%clk 0:01:05.4]} 30. Rcd1 {[%clk 0:00:43.2]} 30... Bc3 {[%clk 0:01:06.2]}
31. Re3 {[%clk 0:00:44.1]} 31... Ba8 {[%clk 0:01:04.2]} 32. Bxc6 {[%clk
0:00:38.6]} 32... Bxc6 {[%clk 0:01:04.2]} 33. Nxa5 {[%clk 0:00:40.3]} 33... Ba8
{[%clk 0:01:04.4]} 34. Nc4 {[%clk 0:00:33.5]} 34... Bd4 {[%clk 0:01:05.4]} 35.
Re2 {[%clk 0:00:31.1]} 35... h5 {[%clk 0:01:05.7]} 36. Kg2 {[%clk 0:00:15.6]}
36... h4 {[%clk 0:01:03.6]} 37. Nb6 {[%clk 0:00:13.5]} 37... Bc6 {[%clk
0:00:59.4]} 38. h3 {[%clk 0:00:12.3]} 38... hxg3 {[%clk 0:00:52.1]} 39. fxg3
{[%clk 0:00:14.2]} 39... Qg6 {[%clk 0:00:53.2]} 40. Rde1 {[%clk 0:00:09.9]}
40... f5 {[%clk 0:00:47.3]} 41. Kh2 {[%clk 0:00:09.9]} 41... fxe4 {[%clk
0:00:25.9]} 42. a5 {[%clk 0:00:10.4]} 42... d5 {[%clk 0:00:26.3]} 43. a6 {[%clk
0:00:10.2]} 43... c4 {[%clk 0:00:27.3]} 44. Nxc4 {[%clk 0:00:09.9]} 44... Bb5
{[%clk 0:00:28.4]} 45. Rd2 {[%clk 0:00:06.9]} 45... Bxa6 {[%clk 0:00:23.6]} 46.
Rxd4 {[%clk 0:00:06.4]} 46... Bxc4 {[%clk 0:00:25.1]} 47. Rxc4 {[%clk
0:00:06.4]} 47... dxc4 {[%clk 0:00:25.5]} 48. Qxc4+ {[%clk 0:00:08.3]} 48... Qf7
{[%clk 0:00:21.4]} 49. Rxe4 {[%clk 0:00:05]} 49... Qxc4 {[%clk 0:00:19.3]} 50.
Rxc4 {[%clk 0:00:06]} 50... Rb8 {[%clk 0:00:21.2]} 51. Rc2 {[%clk 0:00:06.9]}
51... b3 {[%clk 0:00:22.3]} 52. Rb2 {[%clk 0:00:08.3]} 52... Kf7 {[%clk
0:00:22.9]} 53. h4 {[%clk 0:00:08.3]} 53... Ke6 {[%clk 0:00:24.4]} 54. Kh3
{[%clk 0:00:09.5]} 54... Kf5 {[%clk 0:00:25.1]} 55. Rf2+ {[%clk 0:00:05.8]}
55... Ke4 {[%clk 0:00:25.8]} 56. Rb2 {[%clk 0:00:07.4]} 56... Kd3 {[%clk
0:00:27]} 57. Kg4 {[%clk 0:00:08.8]} 57... Kc3 {[%clk 0:00:28.2]} 58. Rb1 {[%clk
0:00:10]} 58... b2 {[%clk 0:00:28.9]} 59. Kg5 {[%clk 0:00:10.7]} 59... Rb6
{[%clk 0:00:27.9]} 60. g4 {[%clk 0:00:10.3]} 60... Kc2 {[%clk 0:00:28.7]} 61.
Rg1 {[%clk 0:00:10.2]} 61... b1=Q {[%clk 0:00:28.7]} 62. Rxb1 {[%clk 0:00:11.2]}
62... Kxb1 {[%clk 0:00:30.6]} 63. h5 {[%clk 0:00:11.5]} 63... Kc2 {[%clk
0:00:30.9]} 64. Kf5 {[%clk 0:00:10.3]} 64... Kd3 {[%clk 0:00:30.6]} 65. g5
{[%clk 0:00:11.7]} 65... Kd4 {[%clk 0:00:31.2]} 66. g6 {[%clk 0:00:11.5]} 66...
Rb1 {[%clk 0:00:15.7]} 67. Kg5 {[%clk 0:00:13.4]} 67... Rg1+ {[%clk 0:00:15.7]}
68. Kf5 {[%clk 0:00:14.3]} 68... Rh1 {[%clk 0:00:15.3]} 69. Ke6 {[%clk
0:00:14.8]} 69... Rxh5 {[%clk 0:00:13.3]} 70. Kf7 {[%clk 0:00:16.1]} 70... Ke5
{[%clk 0:00:13.5]} 71. Kxg7 {[%clk 0:00:17.6]} 71... Ke6 {[%clk 0:00:14.5]} 72.
Kf8 {[%clk 0:00:17.6]} 72... Rf5+ {[%clk 0:00:13.7]} 73. Kg8 {[%clk 0:00:18.3]}
73... Kf6 {[%clk 0:00:13.2]} 74. g7 {[%clk 0:00:19.4]} 74... Rg5 {[%clk
0:00:13.4]} 75. Kh8 {[%clk 0:00:20.7]} 75... Kf7 {[%clk 0:00:14.6]} 0-1

[Event "*** Titled Tuesday Blitz"]
[Site "Chess.com"]
[Date "2020.01.07"]
[Round "2"]
[White "BIG_Pirate"]
[Black "Justmig"]
[Result "1-0"]
[WhiteElo "2424"]
[BlackElo "2688"]
[TimeControl "180+2"]
[EndTime "13:29:19 PST"]
[Termination "BIG_Pirate won on time"]

1. Nf3 {[%clk 0:03:01.7]} 1... d5 {[%clk 0:03:00.4]} 2. c4 {[%clk 0:03:02.5]}
2... d4 {[%clk 0:03:01.1]} 3. g3 {[%clk 0:03:03.5]} 3... Nc6 {[%clk 0:03:01.4]}
4. Bg2 {[%clk 0:03:04.6]} 4... e5 {[%clk 0:03:03]} 5. O-O {[%clk 0:03:05.5]}
5... e4 {[%clk 0:03:03.9]} 6. Ne1 {[%clk 0:03:06.9]} 6... h5 {[%clk 0:03:05.5]}
7. Bxe4 {[%clk 0:03:06.7]} 7... h4 {[%clk 0:03:06.7]} 8. Ng2 {[%clk 0:03:07.7]}
8... hxg3 {[%clk 0:03:04.9]} 9. fxg3 {[%clk 0:03:08.5]} 9... Nf6 {[%clk
0:03:03.2]} 10. Bf3 {[%clk 0:03:04.5]} 10... Ne5 {[%clk 0:02:59.5]} 11. d3
{[%clk 0:03:03.2]} 11... Nxf3+ {[%clk 0:02:54.7]} 12. Rxf3 {[%clk 0:03:04]}
12... Bg4 {[%clk 0:02:55.3]} 13. Rf2 {[%clk 0:03:03]} 13... Qd7 {[%clk
0:02:55.5]} 14. Bg5 {[%clk 0:02:57.4]} 14... O-O-O {[%clk 0:02:53.1]} 15. Nd2
{[%clk 0:02:57.4]} 15... Be7 {[%clk 0:02:43.8]} 16. Nf4 {[%clk 0:02:35.4]} 16...
Ng8 {[%clk 0:01:55.2]} 17. Bxe7 {[%clk 0:02:34.9]} 17... Nxe7 {[%clk 0:01:57.1]}
18. Nf3 {[%clk 0:02:30.1]} 18... f6 {[%clk 0:01:48]} 19. Rc1 {[%clk 0:02:06.8]}
19... Nf5 {[%clk 0:01:45.6]} 20. Qb3 {[%clk 0:01:34.2]} 20... Ne3 {[%clk
0:01:30.8]} 21. Nd5 {[%clk 0:01:29.2]} 21... Bxf3 {[%clk 0:01:16.9]} 22. Nxe3
{[%clk 0:01:21.3]} 22... Bc6 {[%clk 0:01:14.8]} 23. Nd5 {[%clk 0:01:20]} 23...
Bxd5 {[%clk 0:01:15.8]} 24. cxd5 {[%clk 0:01:20.9]} 24... Qxd5 {[%clk
0:01:17.5]} 25. Qxd5 {[%clk 0:01:21.5]} 25... Rxd5 {[%clk 0:01:19.4]} 26. Rc4
{[%clk 0:01:14.1]} 26... b6 {[%clk 0:01:15.3]} 27. b4 {[%clk 0:01:10.6]} 27...
Rhd8 {[%clk 0:01:13.3]} 28. Rf4 {[%clk 0:01:05.3]} 28... Kb7 {[%clk 0:01:11.7]}
29. Rh4 {[%clk 0:01:03]} 29... Re5 {[%clk 0:00:59]} 30. Kf2 {[%clk 0:00:59.5]}
30... Rde8 {[%clk 0:00:58.6]} 31. Rc2 {[%clk 0:01:00.7]} 31... c5 {[%clk
0:00:53.8]} 32. bxc5 {[%clk 0:00:59.1]} 32... bxc5 {[%clk 0:00:55.7]} 33. Rh7
{[%clk 0:00:57.9]} 33... R8e7 {[%clk 0:00:54.1]} 34. Rh8 {[%clk 0:00:59]} 34...
Kc6 {[%clk 0:00:35.8]} 35. Rc8+ {[%clk 0:00:58.2]} 35... Kd6 {[%clk 0:00:37.1]}
36. a4 {[%clk 0:00:49.6]} 36... Rc7 {[%clk 0:00:26.6]} 37. Rxc7 {[%clk
0:00:36.4]} 37... Kxc7 {[%clk 0:00:28.5]} 38. Rb2 {[%clk 0:00:37.7]} 38... Re6
{[%clk 0:00:28.9]} 39. Rb5 {[%clk 0:00:35.8]} 39... Rc6 {[%clk 0:00:29.2]} 40.
a5 {[%clk 0:00:33]} 40... a6 {[%clk 0:00:29.9]} 41. Rb2 {[%clk 0:00:27.9]} 41...
Re6 {[%clk 0:00:24.9]} 42. Kf3 {[%clk 0:00:26.9]} 42... g6 {[%clk 0:00:20.8]}
43. h4 {[%clk 0:00:27.2]} 43... g5 {[%clk 0:00:18]} 44. Rb3 {[%clk 0:00:14.3]}
44... gxh4 {[%clk 0:00:12.6]} 45. gxh4 {[%clk 0:00:15.3]} 45... Re3+ {[%clk
0:00:14]} 46. Kf2 {[%clk 0:00:12.8]} 46... c4 {[%clk 0:00:15.3]} 47. Rb6 {[%clk
0:00:11.5]} 47... c3 {[%clk 0:00:16.3]} 48. Rb4 {[%clk 0:00:05.8]} 48... Re5
{[%clk 0:00:10.8]} 49. Ke1 {[%clk 0:00:02.9]} 49... Rxa5 {[%clk 0:00:05.2]} 50.
Rxd4 {[%clk 0:00:03.8]} 50... Ra1+ {[%clk 0:00:03.2]} 51. Kf2 {[%clk 0:00:05.2]}
51... Rc1 {[%clk 0:00:03.6]} 52. Rc4+ {[%clk 0:00:06.3]} 52... Kd6 {[%clk
0:00:04.3]} 53. h5 {[%clk 0:00:07.9]} 53... Ke6 {[%clk 0:00:04.7]} 54. Rc6+
{[%clk 0:00:07.8]} 54... Kf7 {[%clk 0:00:05.7]} 55. Rxa6 {[%clk 0:00:09.2]}
55... c2 {[%clk 0:00:07]} 56. Rc6 {[%clk 0:00:10.6]} 56... Kg7 {[%clk
0:00:07.3]} 57. Ke3 {[%clk 0:00:11.9]} 57... Rh1 {[%clk 0:00:04.5]} 58. Rxc2
{[%clk 0:00:12.5]} 58... Rxh5 {[%clk 0:00:05.9]} 59. Rc6 {[%clk 0:00:13.6]}
59... Kf7 {[%clk 0:00:07]} 60. Kd4 {[%clk 0:00:14.5]} 60... Ke7 {[%clk
0:00:08.2]} 61. e4 {[%clk 0:00:15.6]} 61... Rh3 {[%clk 0:00:08.3]} 62. Ra6
{[%clk 0:00:16.6]} 62... Rh1 {[%clk 0:00:09]} 63. Kd5 {[%clk 0:00:15.1]} 63...
Rh5+ {[%clk 0:00:09.7]} 64. Kd4 {[%clk 0:00:16.2]} 64... Rh1 {[%clk 0:00:10.3]}
65. Rb6 {[%clk 0:00:15.9]} 65... Rg1 {[%clk 0:00:09.7]} 66. Rb2 {[%clk
0:00:14.1]} 66... Rh1 {[%clk 0:00:10.1]} 67. Rg2 {[%clk 0:00:15]} 67... Ke6
{[%clk 0:00:10.1]} 68. Ra2 {[%clk 0:00:15.3]} 68... Rg1 {[%clk 0:00:10.3]} 69.
Ra6+ {[%clk 0:00:15.8]} 69... Ke7 {[%clk 0:00:11.8]} 70. Kc4 {[%clk 0:00:17.2]}
70... Rc1+ {[%clk 0:00:12.3]} 71. Kd5 {[%clk 0:00:18.2]} 71... Rd1 {[%clk
0:00:09.5]} 72. Ra7+ {[%clk 0:00:19]} 72... Ke8 {[%clk 0:00:08.9]} 73. d4 {[%clk
0:00:20.9]} 73... Kf8 {[%clk 0:00:07]} 74. Kc5 {[%clk 0:00:20]} 74... Rc1+
{[%clk 0:00:06.9]} 75. Kd5 {[%clk 0:00:21.3]} 75... Rd1 {[%clk 0:00:06.9]} 76.
Rd7 {[%clk 0:00:22]} 76... Ke8 {[%clk 0:00:07.1]} 77. Rh7 {[%clk 0:00:23.5]}
77... Kf8 {[%clk 0:00:07.4]} 78. Ra7 {[%clk 0:00:18]} 78... Ke8 {[%clk
0:00:07.5]} 79. Ke6 {[%clk 0:00:19.2]} 79... Kd8 {[%clk 0:00:04.2]} 80. Rd7+
{[%clk 0:00:11.7]} 1-0

[Event "*** Titled Tuesday Blitz"]
[Site "Chess.com"]
[Date "2020.01.07"]
[Round "2"]
[White "TwentyHourADay"]
[Black "wadsy27"]
[Result "1/2-1/2"]
[WhiteElo "2210"]
[BlackElo "2464"]
[TimeControl "180+2"]
[EndTime "13:29:49 PST"]
[Termination "Game drawn by repetition"]

1. e4 {[%clk 0:02:44.1]} 1... e6 {[%clk 0:02:57.9]} 2. Nf3 {[%clk 0:02:39.6]}
2... d5 {[%clk 0:02:59]} 3. e5 {[%clk 0:02:40.1]} 3... c5 {[%clk 0:02:59.4]} 4.
b4 {[%clk 0:02:40.2]} 4... d4 {[%clk 0:02:58.1]} 5. Bd3 {[%clk 0:02:33.2]} 5...
Nc6 {[%clk 0:02:57.6]} 6. bxc5 {[%clk 0:02:32.8]} 6... Bxc5 {[%clk 0:02:57.9]}
7. Na3 {[%clk 0:02:31.7]} 7... Nge7 {[%clk 0:02:58.2]} 8. h4 {[%clk 0:02:32.2]}
8... Ng6 {[%clk 0:02:56.8]} 9. Nc4 {[%clk 0:02:29.4]} 9... Qd5 {[%clk
0:02:48.2]} 10. Qe2 {[%clk 0:01:51.1]} 10... Nf4 {[%clk 0:02:48.1]} 11. Qe4
{[%clk 0:01:49.3]} 11... Nxg2+ {[%clk 0:02:24.3]} 12. Kf1 {[%clk 0:01:47.7]}
12... Qxe4 {[%clk 0:02:24.3]} 13. Bxe4 {[%clk 0:01:48.2]} 13... Nf4 {[%clk
0:02:25.7]} 14. d3 {[%clk 0:01:47.9]} 14... Nd5 {[%clk 0:02:24.7]} 15. Nd6+
{[%clk 0:01:46.1]} 15... Bxd6 {[%clk 0:02:25.2]} 16. exd6 {[%clk 0:01:47.2]}
16... Ndb4 {[%clk 0:02:19.7]} 17. Rg1 {[%clk 0:01:45.6]} 17... g6 {[%clk
0:02:14.4]} 18. Bb2 {[%clk 0:01:40.7]} 18... e5 {[%clk 0:02:05.3]} 19. a3 {[%clk
0:01:36.6]} 19... f5 {[%clk 0:02:06.1]} 20. Bxc6+ {[%clk 0:01:30]} 20... Nxc6
{[%clk 0:02:06.2]} 21. Nxe5 {[%clk 0:01:26.2]} 21... Nxe5 {[%clk 0:01:55.2]} 22.
Re1 {[%clk 0:01:26.5]} 22... Kd7 {[%clk 0:01:43]} 23. Rxe5 {[%clk 0:01:26.3]}
23... Kxd6 {[%clk 0:01:43.7]} 24. Bxd4 {[%clk 0:01:27.1]} 24... Bd7 {[%clk
0:01:41.7]} 25. c4 {[%clk 0:01:26.7]} 25... Rhe8 {[%clk 0:01:41.7]} 26. f4
{[%clk 0:01:27.5]} 26... Bc6 {[%clk 0:01:28.3]} 27. h5 {[%clk 0:01:18.4]} 27...
Rad8 {[%clk 0:01:07.6]} 28. hxg6 {[%clk 0:01:15.2]} 28... hxg6 {[%clk
0:01:08.7]} 29. Rxg6+ {[%clk 0:01:15.8]} 29... Kc7 {[%clk 0:01:09.7]} 30. Rg7+
{[%clk 0:00:57.4]} 30... Kc8 {[%clk 0:01:07.2]} 31. Rxe8 {[%clk 0:00:51.5]}
31... Bxe8 {[%clk 0:01:07.5]} 32. Re7 {[%clk 0:00:40.9]} 32... Rxd4 {[%clk
0:01:06.4]} 33. Rxe8+ {[%clk 0:00:42]} 33... Kd7 {[%clk 0:01:06.4]} 34. Re3
{[%clk 0:00:41.8]} 34... Rxf4+ {[%clk 0:01:05.9]} 35. Ke2 {[%clk 0:00:43]} 35...
Kd6 {[%clk 0:01:03.3]} 36. Kd2 {[%clk 0:00:39.3]} 36... Rf2+ {[%clk 0:01:03.9]}
37. Kc3 {[%clk 0:00:40.2]} 37... f4 {[%clk 0:01:05]} 38. Re8 {[%clk 0:00:36.2]}
38... Rf1 {[%clk 0:01:05.3]} 39. Kd4 {[%clk 0:00:33.1]} 39... f3 {[%clk
0:01:04.6]} 40. c5+ {[%clk 0:00:31.3]} 40... Kd7 {[%clk 0:01:04.4]} 41. Rf8
{[%clk 0:00:31.5]} 41... f2 {[%clk 0:01:01.8]} 42. Rf3 {[%clk 0:00:24]} 42...
Kc6 {[%clk 0:00:59]} 43. a4 {[%clk 0:00:19.2]} 43... a5 {[%clk 0:00:59.3]} 44.
Rf6+ {[%clk 0:00:20.2]} 44... Kd7 {[%clk 0:01:00.5]} 45. Rf3 {[%clk 0:00:20.7]}
45... Ke6 {[%clk 0:01:01.7]} 46. Rf4 {[%clk 0:00:21.4]} 46... Ra1 {[%clk
0:00:56.4]} 47. Rxf2 {[%clk 0:00:21.7]} 47... Rxa4+ {[%clk 0:00:57.3]} 48. Kc3
{[%clk 0:00:22.8]} 48... Kd5 {[%clk 0:00:58.3]} 49. Rf5+ {[%clk 0:00:23.5]}
49... Kc6 {[%clk 0:00:59]} 50. d4 {[%clk 0:00:24.3]} 50... Ra1 {[%clk
0:00:59.3]} 51. Rf6+ {[%clk 0:00:23.7]} 51... Kc7 {[%clk 0:00:58.7]} 52. Kc4
{[%clk 0:00:23.8]} 52... a4 {[%clk 0:00:58.7]} 53. Rf7+ {[%clk 0:00:23.8]} 53...
Kc8 {[%clk 0:00:58.4]} 54. d5 {[%clk 0:00:21]} 54... a3 {[%clk 0:00:59.4]} 55.
Rf8+ {[%clk 0:00:19.8]} 55... Kd7 {[%clk 0:00:57.2]} 56. Rf7+ {[%clk 0:00:21.1]}
56... Ke8 {[%clk 0:00:58]} 57. Rxb7 {[%clk 0:00:21.9]} 57... a2 {[%clk
0:00:59.1]} 58. Rb8+ {[%clk 0:00:21.3]} 58... Ke7 {[%clk 0:00:55.2]} 59. d6+
{[%clk 0:00:22.2]} 59... Kd7 {[%clk 0:00:55]} 60. Rb7+ {[%clk 0:00:23.3]} 60...
Kc8 {[%clk 0:00:55.5]} 61. c6 {[%clk 0:00:07.5]} 61... Rc1+ {[%clk 0:00:55.1]}
62. Kd5 {[%clk 0:00:08.5]} 62... Rd1+ {[%clk 0:00:45.2]} 63. Ke6 {[%clk
0:00:06.2]} 63... Re1+ {[%clk 0:00:45.1]} 64. Kd5 {[%clk 0:00:06.5]} 64... Rd1+
{[%clk 0:00:38.9]} 65. Ke6 {[%clk 0:00:07.7]} 65... Rxd6+ {[%clk 0:00:38.4]} 66.
Kxd6 {[%clk 0:00:05.5]} 66... a1=Q {[%clk 0:00:39.6]} 67. Rc7+ {[%clk
0:00:06.5]} 67... Kb8 {[%clk 0:00:39.4]} 68. Rb7+ {[%clk 0:00:07.4]} 68... Ka8
{[%clk 0:00:40.3]} 69. Kc7 {[%clk 0:00:09]} 69... Qd4 {[%clk 0:00:38.2]} 70.
Rb8+ {[%clk 0:00:09.5]} 70... Ka7 {[%clk 0:00:39.4]} 71. Rb7+ {[%clk 0:00:11.4]}
71... Ka6 {[%clk 0:00:40.4]} 72. Rb8 {[%clk 0:00:09.6]} 72... Qe5+ {[%clk
0:00:39.7]} 73. Kc8 {[%clk 0:00:10.1]} 73... Qe8+ {[%clk 0:00:35.9]} 74. Kc7
{[%clk 0:00:11.3]} 74... Qe7+ {[%clk 0:00:37]} 75. Kc8 {[%clk 0:00:12.7]} 75...
Qe5 {[%clk 0:00:29.7]} 76. Rb7 {[%clk 0:00:11.4]} 76... Qe4 {[%clk 0:00:25.1]}
77. Kc7 {[%clk 0:00:11.3]} 77... Qe6 {[%clk 0:00:23.2]} 78. Rb6+ {[%clk
0:00:09.2]} 78... Ka7 {[%clk 0:00:23.4]} 79. Rb7+ {[%clk 0:00:10.5]} 79... Ka8
{[%clk 0:00:24.6]} 80. Rb8+ {[%clk 0:00:11.4]} 80... Ka7 {[%clk 0:00:25.7]} 81.
Rb7+ {[%clk 0:00:13.3]} 81... Ka6 {[%clk 0:00:27.2]} 82. Rb6+ {[%clk 0:00:14.8]}
82... Ka5 {[%clk 0:00:28.5]} 83. Rb7 {[%clk 0:00:16.2]} 83... Qe7+ {[%clk
0:00:25.1]} 84. Kc8 {[%clk 0:00:17.2]} 84... Qe6+ {[%clk 0:00:19.2]} 85. Kc7
{[%clk 0:00:16.8]} 85... Qe5+ {[%clk 0:00:19.5]} 86. Kc8 {[%clk 0:00:16.2]}
86... Ka6 {[%clk 0:00:20.6]} 87. Rb8 {[%clk 0:00:13]} 87... Qe8+ {[%clk
0:00:12.9]} 88. Kc7 {[%clk 0:00:14]} 88... Qe4 {[%clk 0:00:13.5]} 89. Rb7 {[%clk
0:00:13.5]} 89... Qd5 {[%clk 0:00:14.1]} 90. Rb8 {[%clk 0:00:12.7]} 90... Qe6
{[%clk 0:00:14.6]} 91. Rb6+ {[%clk 0:00:12.2]} 1/2-1/2